Cogmind - Beta 14 @@@ ROGUE MODE // 2024.10.26 @ 20:42:11 Player: Mutetourette Result: Destroyed by VY-HNE(R) with Subdweller Shrapnel Launcher Performance ------------- Evolutions (0) 0 Regions Visited (3) 600 Robots Destroyed (35) 175 Value Destroyed (504) 504 Prototype IDs (1) 20 Alien Tech Used (0) 0 Bonus (0) 0 TOTAL SCORE: 1299 Bonus ------- None Cogmind --------- Core Integrity 0/250 Matter 300/300 Energy 111/125 System Corruption 0% Temperature Cool (18) Movement Walking (190) Ox1 Location -10/Subcaves Parts ------- > --- POWER (1) -------- Light Ion Engine > --- PROPULSION (2) --- Aluminum Leg Aluminum Leg > --- UTILITY (2) ------ Large Storage Unit Core Shielding > --- WEAPON (2) ------- Beam Cannon > --- INVENTORY (15) --- Light Treads Aluminum Leg Heat Sink Disposable Heat Sink High-capacity Storage Unit Subdweller Optics Experimental Sensor Array Improved Terrain Scanner Core Shielding Light Armor Plating Makeshift Light Armor Plating Subdweller Machine Gun Battle Cannon Scrap Shield Fragment (46) Peak State ------------ > --- POWER ------------ Subdweller Power Source > --- PROPULSION ------- Aluminum Leg Aluminum Leg > --- UTILITY ---------- Large Storage Unit Experimental Sensor Array > --- WEAPON ----------- Beam Cannon Beam Cannon > --- INVENTORY -------- Light Ion Engine Light Treads Aluminum Leg Heat Sink Disposable Heat Sink High-capacity Storage Unit Subdweller Optics Improved Terrain Scanner Core Shielding Core Shielding Core Shielding Light Armor Plating [Rating: 17] Favorites ----------- Power Ion Engine Engine Ion Engine Propulsion Aluminum Leg Treads Light Treads Leg Aluminum Leg Utility Large Storage Unit Device Improved Terrain Scanner Storage Large Storage Unit Protection Core Shielding Weapon Beam Cannon Energy Gun Medium Laser Energy Cannon Beam Cannon Ballistic Gun Assault Rifle Launcher Grenade Launcher Build | -11 -10 -10 -10 ------- Run | Yrd Mat Min Sub Slots Evolved . | . . . . Power . | . . . . Propulsion . | . . . . Utility . | . . . . Weapon . | . . . . Parts Attached 33 | 8 5 8 12 Power 4 | 1 . . 3 Engine 4 | 1 . . 3 Core . | . . . . Reactor . | . . . . Propulsion 4 | 2 . . 2 Treads 2 | 2 . . . Leg 2 | . . . 2 Wheel . | . . . . Hover . | . . . . Flight . | . . . . Utility 8 | 2 1 3 2 Device 2 | 1 . . 1 Storage 4 | 1 1 2 . Processor . | . . . . Hackware . | . . . . Protection 2 | . . 1 1 Artifact . | . . . . Weapon 17 | 3 4 5 5 Energy Gun 1 | 1 . . . Energy Cannon 5 | . 2 . 3 Ballistic Gun 6 | 2 . 3 1 Ballistic Cannon . | . . . . Launcher 5 | . 2 2 1 Special Weapon . | . . . . Impact Weapon . | . . . . Slashing Weapon . | . . . . Piercing Weapon . | . . . . Special Melee Weapon . | . . . . Unidentified Prototypes 1 | . . . 1 Parts Lost 6 | . . . 6 Power 1 | . . . 1 Propulsion 1 | . . . 1 Utility . | . . . . Weapon 4 | . . . 4 Highest Loss Streak 4 | . . . 4 To Critical Strikes . | . . . . Average Slot Usage (%) 99 | . 100 100 99 Engine 14 | . 14 14 14 Treads 12 | . 28 28 4 Leg 15 | . . . 23 Device 1 | . 14 . . Storage 14 | . 14 14 14 Protection 12 | . . 14 13 Energy Cannon 16 | . 12 . 22 Ballistic Gun 8 | . 14 17 4 Launcher 2 | . 1 10 . Peak Build Rating 17 | 9 10 10 17 Average Rating 9 | 4 9 8 9 On Entrance 7 | . 9 10 9 Naked Turns . | . . . . Heaviest Build 32 | 14 32 31 32 Greatest Support 40 | 40 40 40 40 Greatest Overweight (x) 1 | . . . 1 Average Overweight (x) . | . . . . Largest Inventory Capacity 20 | 8 15 20 15 Average Capacity 14 | 7 14 15 15 Most Carried 15 | 8 15 15 15 Average Carried 14 | 5 13 14 14 Final Capacity 15 | 8 15 15 15 Final Carried 15 | 6 15 15 14 Class Distribution -------------------- 100% | Mutant Dominant Class ---------------- Mutant | -10/Materials Mutant | -10/Mines Mutant | -10/Subcaves Resources | -11 -10 -10 -10 ----------- Run | Yrd Mat Min Sub Matter Collected 841 | 274 108 231 228 Remotely . | . . . . Salvage Created 638 | 36 234 156 212 Parts 75 | 9 19 33 14 Haulers Intercepted 1 | . 1 . . Recyclers Shooed 2 | . 2 . . Parts Field Recycled . | . . . . Retrieved Matter . | . . . . Parts Self-Destructed 15 | . . . 15 Prevented . | . . . . Kills | -11 -10 -10 -10 ------- Run | Yrd Mat Min Sub Combat Hostiles Destroyed 24 | . 4 12 8 Guns 7 | . 1 6 . Cannons 7 | . . . 7 AOE 10 | . 3 6 1 Classes Destroyed 10 | 1 6 1 2 Worker 2 | . 1 1 . Builder 2 | . . 2 . Tunneler 4 | 2 . 2 . Hauler 1 | . 1 . . Recycler 1 | . 1 . . Operator 1 | . 1 . . Swarmer 18 | . 3 12 3 Grunt 3 | . 1 . 2 Sentry 1 | . . . 1 Subdweller 2 | . . . 2 Best Kill Streak 7 | 2 3 7 3 Combat Bots Only 4 | . 3 4 3 Max Kills in Single Turn 3 | 2 2 3 1 Gunslinging . | . . . . Exploded 3 | . 2 3 1 Melee . | . . . . Uniques/NPCs Destroyed . | . . . . Combat | -11 -10 -10 -10 -------- Run | Yrd Mat Min Sub Hostile Shots Fired 115 | . 12 36 67 Missed 36 | . 1 19 16 Damage Taken 1324 | . 102 186 1036 Core 266 | . . 30 236 Absorbed by Shields . | . . . . Redirected to Shielding 44 | . . 5 39 Core Remaining (%) 100 | 100 . . . Volleys Fired 93 | 1 17 18 57 Largest 2 | 2 2 2 2 Hottest 120 | 40 120 50 120 Shots Fired 172 | 2 33 36 101 Gun 92 | 2 24 27 39 Cannon 65 | . 6 . 59 Launcher 15 | . 3 9 3 Special . | . . . . Kinetic 92 | 2 24 27 39 Thermal 65 | . 6 . 59 Explosive 15 | . 3 9 3 Electromagnetic . | . . . . Robot Hit Streak 11 | 1 7 2 11 Robot Miss Streak 4 | . 1 3 4 Penetration Max . | . . . . Secondary Targets 1 | . . 1 . Max Gunslinging Chain 1 | . . 1 . Shots Hit Robots 87 | 1 22 13 51 Core Hits 46 | 2 12 20 12 Critical Kills . | . . . . Critical Parts Destroyed . | . . . . Critical Strikes . | . . . . Melee Attacks . | . . . . Impact . | . . . . Slashing . | . . . . Piercing . | . . . . Sneak Attacks . | . . . . Combat Hostiles . | . . . . Follow-up Attacks . | . . . . Damage Inflicted 1566 | 25 454 606 481 Guns 401 | 25 189 131 56 Cannons 370 | . 53 . 317 Explosions 786 | . 212 466 108 Melee . | . . . . Ramming 9 | . . 9 . Kinetic 401 | 25 189 131 56 Thermal 370 | . 53 . 317 Explosive 786 | . 212 466 108 Electromagnetic . | . . . . Impact . | . . . . Slashing . | . . . . Piercing . | . . . . Highest Corruption . | . . . . Average Corruption . | . . . . Corruption Purged . | . . . . Corruption Blocked . | . . . . Overload Shots . | . . . . Overflow Damage 44 | . 21 10 13 Projectiles 13 | . . . 13 Explosions 31 | . 21 10 . Melee . | . . . . Knockbacks . | . . . . Impact . | . . . . Kinetic . | . . . . Secondary . | . . . . Self-Inflicted Damage 60 | . . 42 18 Shots 4 | . . 3 1 Rammed 1 | . . 1 . Targets Rammed 1 | . . 1 . Kicked . | . . . . Crushed . | . . . . Highest Temperature 120 | . 120 . 18 Average Temperature 31 | . 39 . 13 Received Heat Transfer 117 | . 42 . 75 Siege Activations . | . . . . Robots Corrupted . | . . . . Combat Hostiles . | . . . . Parts Fried . | . . . . Impact Corruptions . | . . . . Robots Melted . | . . . . Combat Hostiles . | . . . . Parts Melted 2 | . . . 2 Heat Transferred 777 | . 111 . 666 Parts Sabotaged . | . . . . Parts Stolen . | . . . . Parts Stripped . | . . . . Power Chain Reactions . | . . . . Alert | -11 -10 -10 -10 ------- Run | Yrd Mat Min Sub Peak Influence 395 | 10 87 395 . Initial 31 | . 6 31 . Average 157 | 1 41 235 . Maximum Alert Level 1 | . . 1 . Low Security (%) 63 | 100 100 40 . Level 1 36 | . . 59 . Level 2 . | . . . . Level 3 . | . . . . Level 4 . | . . . . Level 5 . | . . . . High Security . | . . . . Max Security . | . . . . Squads Dispatched 3 | . 3 . . Investigation 1 | . 1 . . Extermination . | . . . . Reinforcement 2 | . 2 . . Assault . | . . . . Garrison . | . . . . Intercept . | . . . . Searches Triggered . | . . . . Construction Impeded . | . . . . Haulers Reinforced . | . . . . Active Scanning Responses . | . . . . Cargo Convoy Interrupts . | . . . . Stealth | -11 -10 -10 -10 --------- Run | Yrd Mat Min Sub Distress Signals 2 | . 2 . . Communications Jammed . | . . . . Distress Signals . | . . . . Times Spotted 35 | . 9 15 11 Peak Tracking Total 4 | . 3 4 3 Tactical Retreats 3 | . . 2 1 Traps | -11 -10 -10 -10 ------- Run | Yrd Mat Min Sub Traps Triggered 2 | . 1 . 1 Indirectly . | . . . . Trap Hack Attempts . | . . . . Triggered . | . . . . Disarmed . | . . . . Reprogrammed . | . . . . Reused . | . . . . Traps Extracted . | . . . . Installed . | . . . . Triggered . | . . . . Machines | -11 -10 -10 -10 ---------- Run | Yrd Mat Min Sub Machines Disabled 2 | . 1 1 . Max in Single Turn 1 | . 1 1 . Machines Repaired . | . . . . Machines Dismantled . | . . . . Machines Sabotaged . | . . . . Overloaded Fab Kills . | . . . . Hacking | -11 -10 -10 -10 --------- Run | Yrd Mat Min Sub Machines Accessed 3 | . 2 . 1 Terminals 2 | . 2 . . Fabricators . | . . . . Repair Stations . | . . . . Recycling Units . | . . . . Scanalyzers . | . . . . Garrison Access . | . . . . Total Hacks 9 | . 5 . 4 Successful 7 | . 3 . 4 Failed 2 | . 2 . . Catastrophic . | . . . . Database Lockouts . | . . . . Manual 4 | . 4 . . Terminals 5 | . 5 . . Fabricators . | . . . . Repair Stations . | . . . . Recycling Units . | . . . . Scanalyzers . | . . . . Garrison Access . | . . . . Terminal Hacks 5 | . 1 . 4 Record 4 | . . . 4 Emergency Access Points 1 | . 1 . . Fabricator Hacks . | . . . . Repair Station Hacks . | . . . . Recycling Unit Hacks . | . . . . Scanalyzer . | . . . . Garrison Access Hacks . | . . . . Unauthorized Hacks 2 | . 2 . . Terminals 2 | . 2 . . Botnet 2 | . 2 . . Fabricators . | . . . . Repair Stations . | . . . . Recycling Units . | . . . . Scanalyzers . | . . . . Garrison Access . | . . . . Data Cores Recovered . | . . . . Used . | . . . . Hacking Detections 2 | . 2 . . Full Trace Events . | . . . . Feedback Events . | . . . . Feedback Blocked . | . . . . Robot Schematics Acquired . | . . . . Robots Built . | . . . . Authchips . | . . . . Time . | . . . . Total Robot Build Rating . | . . . . Part Schematics Acquired . | . . . . Parts Built . | . . . . Authchips . | . . . . Time . | . . . . Total Part Build Rating . | . . . . Parts Repaired . | . . . . Time . | . . . . Parts Recycled . | . . . . Recycled Matter . | . . . . Retrieved Matter . | . . . . Retrieved Components . | . . . . Parts Scanalyzed . | . . . . Part Schematics Acquired . | . . . . Parts Damaged . | . . . . Bothacking | -11 -10 -10 -10 ------------ Run | Yrd Mat Min Sub Used RIF Installer . | . . . . Robots Hacked . | . . . . Non-combat . | . . . . Combat . | . . . . Robot Hacks Applied . | . . . . Relay Couplers Released . | . . . . Fabnet Peak Effective % . | . . . . Robots Rewired . | . . . . Allies Hacked . | . . . . Hacks Repelled . | . . . . Allies | -11 -10 -10 -10 -------- Run | Yrd Mat Min Sub Total Allies . | . . . . Largest Group . | . . . . Highest-Rated Group . | . . . . Highest-Rated Ally . | . . . . Total Orders . | . . . . Ally Attacks . | . . . . Total Damage . | . . . . Kills . | . . . . Allies Corrupted . | . . . . Allies Melted . | . . . . Intel | -11 -10 -10 -10 ------- Run | Yrd Mat Min Sub Robot Analysis Total . | . . . . Derelict Logs Recovered 5 | . . 2 3 Drone Launches . | . . . . Drone Recoveries . | . . . . Exploration | -11 -10 -10 -10 ------------- Run | Yrd Mat Min Sub Turns Passed 4273 | 82 551 976 2664 Spaces Moved 1950 | 41 255 381 1273 Core 7 | 7 . . . Treads 903 | 34 255 381 233 Legs 1040 | . . . 1040 Wheels . | . . . . Hover . | . . . . Flight . | . . . . Fastest Speed 50 | 50 160 160 160 Average Speed 175 | 141 160 160 184 Slowest Speed 190 | 160 160 160 190 Overloaded Moves . | . . . . Propulsion Burnouts . | . . . . Robots Hopped . | . . . . Cave-ins Triggered . | . . . . Exploration Rate (%) 47 | 3 42 78 68 Regions Visited 3 Branch Regions 2 Pre-discovered Areas 6 | . . 2 4 Known Exits Taken . | . . . . Unknown Exits Taken 3 | 1 1 1 . Scrap Searched 6 | . . 2 4 Spaces Dug . | . . . . Terrain Destroyed 106 | . 17 72 17 Melee . | . . . . Projectile . | . . . . AOE 106 | . 17 72 17 Terrain Rammed . | . . . . Walls Destroyed . | . . . . Machines Disabled . | . . . . Actions | -11 -10 -10 -10 --------- Run | Yrd Mat Min Sub Total 2632 | 61 368 710 1493 Wait 517 | 2 76 300 139 Move 1947 | 40 254 380 1273 Hop . | . . . . Pick Up 31 | 10 12 1 8 Fast Attach 3 | 3 . . . Attach 10 | 4 . . 6 Detach . | . . . . Swap 20 | 1 5 8 6 Drop 10 | . 4 2 4 Fire 93 | 1 17 18 57 Melee . | . . . . Ram . | . . . . Kick . | . . . . Crush 1 | . . 1 . Escape Stasis . | . . . . Rewire . | . . . . Trap . | . . . . Miscellaneous . | . . . . Route ------- -11/Scrapyard -10/Materials (discovered 2 exits: [*Mat] / [*Min]) -10/Mines (discovered 2 exits: [*Mat] / *Sub) -10/Subcaves (discovered 1 exit: [*Mat]) History --------- Turn | Location | Event 12 | -11/Scrapyard | Discovered new exit (range 15) 83 | -11/Scrapyard | Entered Materials 301 | -10/Materials | Build established: Mutant 393 | -10/Materials | Discovered new exit (range 11) 600 | -10/Materials | Discovered new exit (range 16) 634 | -10/Materials | Entered Mines 655 | -10/Mines | Discovered new exit (range 12) 835 | -10/Mines | Found a hidden stash of uninstalled traps 963 | -10/Mines | Found a damaged Exp. Sensor Array with a note attached 967 | -10/Mines | Found Prototype Device 1127 | -10/Mines | Learned location of Storage (-8) 1576 | -10/Mines | Discovered new exit (range 5) 1610 | -10/Mines | Entered Subcaves 1798 | -10/Subcaves | Visited Clippyterm 1802 | -10/Subcaves | Learned location of Extension (-6) 2044 | -10/Subcaves | Core integrity fell below 50% 2076 | -10/Subcaves | Lost 4 parts (1p1n2w) 2161 | -10/Subcaves | Learned Materials terminal intel 2213 | -10/Subcaves | Identified Exp. Sensor Array 3121 | -10/Subcaves | Learned location of Zion (-7) 3121 | -10/Subcaves | Met a Zionite searching for "candidates" 3397 | -10/Subcaves | Discovered new exit (range 14) 3539 | -10/Subcaves | A swath of the cavern ceiling suddenly collapsed 4274 | -10/Subcaves | Core integrity fell below 20% 4274 | -10/Subcaves | Destroyed by VY-HNE(R) with Subdweller Shrapnel Launcher Last Messages --------------- 02826_ Dropped Broken Sub. Power Source. 02847_ Subatomizers dissect the Lgt. Treads. 02964_ Subatomizers dissect the Broken Sub. Power Source. 02974_ Subatomizers dissect the Broken Sub. Power Source, destroying it. 02985_ Acquired 10 matter. 02987_ Subatomizers dissect the Lgt. Treads. 03121_ TD-CBV(z): "Hey you! It's really dangerous down here, I feel that you could die at any moment. For your health and safety might I suggest a trip to Zion?" World map updated: -7/Zion. 03397_ EXIT=FOUND A swath of the cavern ceiling suddenly collapses. 03784_ Triggered Shrapnel Trap. 03784_ An expanding cloud of shrapnel blasts out in all directions. 04274_ Beam Cannon destroyed. Map ----- +----------------------------------------------------+ | ??????????## ### #?# ### | | ?????????## ### ### ## | | ?????????# ## ## | | ?????????# ## | | ?????????###### ### ## ## | | ??????????###?## #?# ########## #### | | ??????????# ##?# ## ##????????###??#### | | ??????????# ### ### ###??????????????????# | | ?????????## #?## ##????????????????????? | | ?????????# ##?###?????????????????????? | | ?????????# ## ###???????????????????????? | | ????????## #### ##??????????????????????? | | ????????# ##??## #??????????????????????? | | ????????# ##????# ###??????????????????????? | | ????????## ##????# ##????????????????????????? | | ?????????## #????# #?????????????????????????? | | ??????????# ##????# #?????????????????????????? | | ?????????## ####??# ?????????????????????????? | | ????????## #### #????????????????????????? | | ????????# ## ## #????????????????????????? | | ????????# ## ########??????????????????? | | ????????## ### #####; #;#??????????????????? | | ?????????# ## # ## ; ##??????????????????? | | ?????????# ### ;;;; #??????????????????? | | ?????????# ##?????????????????? | | ????????# @ #?????????????????? | | ????????# #### #????????????????? | | ????????# ##?# ;;; #????????????? | | ????????# #???# ;### #????????????? | | ????????# ???# ### #??# R ??????????? | | ????????##?? ??# #??# R ????????? | | ?????????? ? #?# ????????? | | ????????? ? ## ????????? | | ?????????#### #### ?????????? | | ????????????# ## ???? ?????????? | | ????????????## #?# ??? ??????????? | | ??????????????##??## ??? ??????????? | | ???????????????????# ???? ####????????????? | | ???????????????????# ???? #???????????????? | | ???????????????????? ?????? ?????????????????? | | ?????????????????????????????????????????????????? | | ?????????????????????????????????????????????????? | | ?????????????????????????????????????????????????? | | ?????????????????????????????????????????????????? | | ?????????????????????????????????????????????????? | | ?????????????????????????????????????????????????? | | ?????????????????????????????????????????????????? | | ?????????????????????????????????????????????????? | | ?????????????????????????????????????????????????? | | ?????????????????????????????????????????????????? | +----------------------------------------------------+ Best States ------------- Heat Dissipation 25 Energy Generation 15 Energy Capacity 250 Matter Stores 300 Matter Capacity 300 Sight Range 16 Robot Scan Range 20 Terrain Scan Range 16 Terrain Scan Density 10 Core Shielding 20 Evasion (%) 40 Recoil Reduction 2 Item Schematics ----------------- None Robot Schematics ------------------ None Fabricated ------------ Nothing Alien Tech Used ----------------- None Achievements -------------- None Challenges ------------ None Game ------ Seed PropulsionHardenedCutter Manual? 0 Play Time 00:21:34 Cumulative 22.9 hours Start 2024.10.26 @ 20:24:05 End 2024.10.26 @ 20:42:11 Sessions 1 Manual Loads 0 Difficulty Rogue Special Mode None Game No. 56 Rogue 56 Adventurer 0 Explorer 0 Win Type - Total 0 Types 0/0/0/0/0/0/0/0/0 Lore% 28 Gallery% 29 Achievement% 28 Wizard Run 0 Options --------- Layout 1 ASCII 0 Keyboard 0 Movement Mouse Keybinds 0 Fullscreen 1 Font 24/Smallcaps Map View 50x35 Zoom Use 0% Tactical HUD 1 Map Filters NONE Filters NONE Steam 1 RUN: 981f6678-f2f4-4e87-a6c4-79942edd8837